bitfinex/quotes_SOLUSD_20230104
["timestamp","ask_amount","ask_price","bid_price","bid_amount"]
[1672823344416,54.42,13.795,13.778,30.0]
[1672823344836,54.42,13.795,13.78,30.0]
[1672823345046,54.41,13.797,13.782,30.0]
[1672823345261,54.4,13.798,13.783,50.66]
[1672823345472,54.4,13.798,13.784,30.0]
[1672823345904,54.4,13.798,13.778,30.0]
[1672823345905,54.4,13.798,13.756,157.90919863]
[1672823346099,30.0,13.797,13.763,30.0]
[1672823346308,54.41,13.796,13.763,30.0]
[1672823346518,54.41,13.796,13.771,30.0]
[1672823346519,30.0,13.795,13.771,30.0]
[1672823346738,30.0,13.793,13.772,45.85306]
[1672823346949,54.43,13.792,13.772,45.85306]
[1672823347165,30.0,13.791,13.772,45.85306]
[1672823347372,54.44,13.79,13.777,23.9573]
[1672823348005,54.43,13.792,13.777,23.9573]
[1672823348620,54.43,13.792,13.778,20.0]
[1672823349063,30.0,13.791,13.778,20.0]
[1672823349278,54.44,13.79,13.778,20.0]
[1672823349462,54.43,13.792,13.779,30.0]
[1672823350099,54.41,13.796,13.778,20.0]
[1672823350313,30.0,13.795,13.778,20.0]
[1672823350637,30.0,13.793,13.778,20.0]
[1672823350868,30.0,13.791,13.778,20.0]
[1672823351061,54.44,13.79,13.778,20.0]
[1672823351273,30.0,13.789,13.778,20.0]
[1672823351495,54.44,13.788,13.778,20.0]
[1672823352214,54.44,13.788,13.772,0.36306]
[1672823352215,20.0,13.787,13.772,0.36306]
[1672823352556,30.0,13.785,13.772,0.36306]
[1672823352746,54.46,13.784,13.772,0.36306]
[1672823354323,54.45,13.786,13.772,0.36306]
[1672823354732,30.0,13.785,13.772,0.36306]
[1672823354950,54.46,13.784,13.772,0.36306]
[1672823357175,30.0,13.783,13.772,0.36306]
[1672823357387,54.47,13.782,13.772,0.36306]
[1672823358856,30.0,13.783,13.772,0.36306]
[1672823359600,54.46,13.784,13.772,0.36306]
[1672823359999,30.0,13.783,13.772,0.36306]
[1672823360763,54.46,13.784,13.772,0.36306]
[1672823361273,54.45,13.787,13.773,54.5]
[1672823361489,78.8145,13.788,13.774,50.0]
[1672823361903,30.0,13.787,13.774,20.0]
[1672823362113,54.45,13.786,13.773,20.0]
[1672823362317,54.45,13.786,13.772,0.36306]
[1672823362534,54.45,13.786,13.772,30.36306]
[1672823362759,54.45,13.786,13.773,20.0]
[1672823363375,30.0,13.786,13.773,20.0]
[1672823363596,54.46,13.785,13.773,20.0]
[1672823364025,54.46,13.785,13.773,815.2433681]
[1672823364849,54.45,13.786,13.774,30.0]
[1672823365182,54.45,13.786,13.775,20.0]
[1672823366106,54.45,13.786,13.774,20.0]
[1672823366649,54.45,13.786,13.773,795.2433681]
[1672823366650,30.0,13.785,13.773,795.2433681]
[1672823366969,54.46,13.784,13.773,795.2433681]
[1672823367280,30.0,13.785,13.773,795.2433681]
[1672823367492,54.46,13.784,13.773,795.2433681]
[1672823367682,54.45,13.786,13.774,20.0]
[1672823367892,54.45,13.786,13.775,30.0]
[1672823368101,54.45,13.786,13.776,20.0]
[1672823368326,54.45,13.787,13.776,20.0]
[1672823368943,24.3745,13.788,13.777,30.0]
[1672823369166,111.8634,13.789,13.778,20.0]
[1672823369377,111.8634,13.789,13.779,30.0]
[1672823369592,54.44,13.788,13.779,825.2433681]
[1672823369903,54.44,13.788,13.779,795.2433681]
[1672823370226,84.44,13.788,13.779,795.2433681]
[1672823370422,54.44,13.788,13.779,795.2433681]
[1672823370644,54.44,13.788,13.78,30.0]
[1672823370853,111.8634,13.789,13.779,795.2433681]
[1672823370854,166.3034,13.789,13.779,795.2433681]
[1672823371258,30.0,13.788,13.779,795.2433681]
[1672823371467,30.0,13.786,13.773,756.9533681]
[1672823371699,54.46,13.785,13.773,756.9533681]
[1672823371886,54.46,13.785,13.774,30.0]
[1672823372097,54.45,13.787,13.774,30.0]
[1672823372539,134.6085,13.789,13.775,43.88]
[1672823372753,134.6085,13.789,13.776,30.0]
[1672823373063,54.41,13.796,13.778,30.0]
[1672823373380,162.7536,13.797,13.78,30.0]
[1672823373586,162.7536,13.797,13.782,30.0]
[1672823373802,162.7536,13.797,13.783,732.59527498]
[1672823374205,30.0,13.795,13.783,732.59527498]
[1672823374407,54.42,13.794,13.783,732.59527498]
[1672823374636,30.0,13.793,13.783,732.59527498]
[1672823374833,30.0,13.791,13.783,732.59527498]
[1672823375044,54.44,13.79,13.783,732.59527498]
[1672823375271,30.0,13.789,13.783,732.59527498]
[1672823375474,54.44,13.788,13.783,732.59527498]
[1672823375785,30.0,13.787,13.783,639.42927498]
[1672823375981,54.45,13.786,13.773,561.08707498]
[1672823376191,30.0,13.785,13.773,561.08707498]
[1672823376403,54.46,13.784,13.773,561.08707498]
[1672823377144,54.46,13.785,13.773,561.08707498]
[1672823377350,30.0,13.784,13.773,561.08707498]
[1672823377561,30.0,13.782,13.773,561.08707498]
[1672823377769,54.47,13.781,13.773,561.08707498]
[1672823377982,30.0,13.782,13.773,561.08707498]
[1672823377983,49.17973466,13.782,13.774,51.51243447]
[1672823378203,113.7602,13.786,13.774,51.51243447]
[1672823378419,113.7602,13.786,13.774,30.0]
[1672823378740,30.0,13.785,13.775,20.0]
[1672823379055,113.7602,13.786,13.774,20.0]
[1672823379258,425.7602,13.786,13.774,50.0]
[1672823380308,425.7602,13.786,13.769,647.65597498]
[1672823380309,30.0,13.785,13.769,647.65597498]
[1672823380519,54.46,13.784,13.769,48.2789]
[1672823380754,30.0,13.783,13.769,48.2789]
[1672823380929,54.47,13.782,13.769,48.2789]
[1672823381139,54.47,13.782,13.77,30.0]
[1672823381345,54.47,13.782,13.769,48.2789]
[1672823381768,54.47,13.782,13.77,30.0]
[1672823382203,84.46,13.783,13.77,30.0]
[1672823382710,113.7602,13.786,13.771,4.973]
[1672823382929,113.7602,13.786,13.773,4.972]
[1672823383345,30.0,13.785,13.773,24.972]
[1672823384529,113.7602,13.786,13.773,24.972]
[1672823386511,54.46,13.785,13.773,20.0]
[1672823386705,54.46,13.785,13.772,20.36306]
[1672823386912,54.46,13.785,13.772,0.36306]
[1672823388088,54.46,13.785,13.772,30.36306]
[1672823388617,54.46,13.785,13.773,20.0]
[1672823392188,113.7602,13.786,13.773,20.0]
[1672823393016,113.7602,13.786,13.774,30.0]
[1672823393227,113.7602,13.786,13.775,20.0]
[1672823393443,113.7602,13.786,13.776,30.0]
[1672823394073,113.7602,13.786,13.776,104.7611784]
[1672823395334,113.7602,13.786,13.777,21.51243447]
[1672823395551,113.7602,13.786,13.778,30.0]
[1672823396078,113.7602,13.786,13.778,104.7611784]
[1672823397422,113.7602,13.786,13.778,74.7611784]
[1672823399751,113.7602,13.786,13.779,30.0]
[1672823400161,113.7602,13.786,13.779,104.7611784]
[1672823400578,113.7602,13.786,13.779,74.7611784]
[1672823401112,113.7602,13.786,13.78,30.0]
[1672823401337,54.42,13.793,13.78,51.51243447]
[1672823401645,54.42,13.794,13.781,41.51243447]
[1672823401864,169.609,13.796,13.783,30.0]
[1672823402050,163.7797,13.796,13.784,20.0]
[1672823402261,163.7797,13.796,13.784,95.97243447]
[1672823402471,163.7797,13.796,13.785,51.51243447]
[1672823402684,163.7797,13.796,13.787,30.0]
[1672823402913,115.199,13.796,13.788,20.0]
[1672823404157,115.199,13.796,13.789,30.0]
[1672823405543,115.199,13.796,13.788,117.9447915]
[1672823405544,115.199,13.796,13.788,87.9447915]
[1672823406483,30.0,13.795,13.788,87.9447915]
[1672823406696,115.199,13.796,13.788,87.9447915]
[1672823407646,54.42,13.795,13.788,87.9447915]
[1672823408276,115.199,13.796,13.788,87.9447915]
[1672823409221,30.0,13.795,13.788,87.9447915]
[1672823409414,54.42,13.794,13.788,87.9447915]
[1672823410047,30.0,13.793,13.788,87.9447915]
[1672823410250,54.43,13.792,13.788,87.9447915]
[1672823410588,30.0,13.793,13.788,87.9447915]
[1672823412481,54.42,13.794,13.788,87.9447915]
[1672823412878,54.42,13.795,13.788,87.9447915]
[1672823414246,30.0,13.794,13.788,87.9447915]
[1672823414458,54.42,13.793,13.788,87.9447915]
[1672823415211,30.0,13.792,13.788,87.9447915]
[1672823415944,84.42,13.794,13.788,87.9447915]
[1672823416578,54.42,13.794,13.788,87.9447915]
[1672823416791,115.199,13.796,13.788,87.9447915]
[1672823423606,84.42,13.795,13.788,87.9447915]
[1672823423925,54.42,13.795,13.788,87.9447915]
[1672823424334,115.199,13.796,13.788,87.9447915]
[1672823424766,115.199,13.796,13.789,30.0]
[1672823426360,115.199,13.796,13.791,30.0]
[1672823426581,54.38,13.803,13.791,30.0]
[1672823426774,49.301,13.8,13.791,30.0]
[1672823427418,49.301,13.8,13.791,51.51243447]
[1672823428048,49.301,13.8,13.789,17.2]
[1672823428572,49.301,13.8,13.789,469.62536796]
[1672823428978,49.301,13.8,13.789,452.42536796]
[1672823430261,49.301,13.8,13.79,30.0]
[1672823431188,49.301,13.8,13.789,470.31536796]
[1672823431398,30.0,13.799,13.789,452.42536796]
[1672823431620,84.4,13.799,13.789,452.42536796]
[1672823432044,30.0,13.799,13.789,452.42536796]
[1672823432779,84.4,13.799,13.789,452.42536796]
[1672823433202,54.4,13.799,13.79,30.0]
[1672823433622,49.301,13.8,13.79,30.0]
[1672823433832,49.301,13.8,13.789,452.42536796]
[1672823436874,49.301,13.8,13.79,30.0]
[1672823437084,49.301,13.8,13.789,452.42536796]
[1672823442128,49.301,13.8,13.79,30.0]
[1672823442676,49.301,13.8,13.789,452.42536796]
[1672823444026,49.301,13.8,13.79,30.0]
[1672823444445,49.301,13.8,13.79,94.90008188]
[1672823444655,77.8828,13.807,13.792,30.0]
[1672823444877,115.8596,13.805,13.793,20.0]
[1672823445090,115.8596,13.805,13.793,84.90008188]
[1672823445298,115.8596,13.805,13.795,30.0]
[1672823445510,115.8596,13.805,13.796,20.0]
[1672823446642,115.8596,13.805,13.797,30.0]
[1672823446860,115.8596,13.805,13.798,20.0]
[1672823448773,115.8596,13.805,13.799,30.0]
[1672823449161,115.8596,13.805,13.799,94.90008188]
[1672823449584,47.688,13.809,13.799,94.90008188]
[1672823450222,54.34,13.814,13.8,64.90008188]
[1672823450431,73.83959194,13.82,13.8,64.90008188]
[1672823450432,114.2271,13.816,13.802,30.0]
[1672823450633,54.34,13.815,13.803,20.0]
[1672823450846,168.5571,13.816,13.803,20.0]
[1672823451480,168.5571,13.816,13.804,30.0]
[1672823451689,168.5571,13.816,13.805,20.0]
[1672823452342,168.5571,13.816,13.806,30.0]
[1672823452651,168.5571,13.816,13.807,20.0]
[1672823452875,114.2271,13.816,13.808,30.0]
[1672823454852,114.2271,13.816,13.808,59.9030786]
[1672823455800,168.5571,13.816,13.808,59.9030786]
[1672823456021,168.5571,13.816,13.808,29.9030786]
[1672823456857,30.0,13.815,13.808,29.9030786]
[1672823457048,54.34,13.814,13.808,29.9030786]
[1672823457253,30.0,13.813,13.808,29.9030786]
[1672823457464,54.35,13.812,13.808,29.9030786]
[1672823458420,30.0,13.811,13.808,29.9030786]
[1672823458641,54.36,13.81,13.808,29.9030786]
[1672823458957,30.0,13.809,13.808,29.9030786]
[1672823459148,84.36,13.809,13.808,29.9030786]
[1672823464115,29.9,13.808,13.8,8.5475211]
[1672823464430,30.0,13.806,13.8,8.5475211]
[1672823464615,30.0,13.804,13.8,8.5475211]
[1672823464827,54.38,13.803,13.8,8.5475211]
[1672823465043,30.0,13.802,13.8,8.5475211]
[1672823475872,84.39,13.802,13.8,8.5475211]
[1672823476083,396.39,13.802,13.8,8.5475211]
[1672823476718,342.0,13.802,13.8,8.5475211]
[1672823477145,30.0,13.802,13.8,8.5475211]
[1672823478423,54.39,13.801,13.8,8.5475211]
[1672823478813,30.0,13.807,13.8,8.5475211]
[1672823479458,54.38,13.805,13.8,8.5475211]
[1672823479667,30.0,13.804,13.8,8.5475211]
[1672823479877,54.38,13.803,13.8,8.5475211]
[1672823480079,50.0,13.802,13.8,8.5475211]
[1672823480290,54.39,13.801,13.8,8.5475211]
[1672823480500,104.39,13.801,13.8,8.5475211]
[1672823480920,104.39,13.801,13.8,0.0075211]
[1672823481148,217.7729,13.801,13.8,0.0075211]
[1672823481357,30.0,13.8,13.788,29.4941918]
[1672823481567,30.0,13.798,13.788,29.4941918]
[1672823481885,20.0,13.797,13.788,29.4941918]
[1672823486189,74.41,13.797,13.788,29.4941918]
[1672823486593,20.0,13.797,13.788,29.4941918]
[1672823486801,20.0,13.798,13.788,29.4941918]
[1672823487025,54.41,13.797,13.788,29.4941918]
[1672823487242,50.0,13.796,13.788,29.4941918]
[1672823489671,30.0,13.794,13.788,29.4941918]
[1672823491116,342.0,13.794,13.788,29.4941918]
[1672823492504,30.0,13.792,13.788,29.4941918]
[1672823492696,30.0,13.79,13.788,29.4941918]
[1672823492913,74.44,13.789,13.788,29.4941918]
[1672823494291,54.44,13.789,13.788,29.4941918]
[1672823497329,84.44,13.789,13.788,29.4941918]
[1672823497733,104.44,13.789,13.788,29.4941918]
[1672823500159,54.44,13.789,13.788,29.4941918]
[1672823500359,54.44,13.79,13.788,29.4941918]
[1672823500564,54.43,13.792,13.788,29.4941918]
[1672823501537,312.0,13.79,13.788,29.4941918]
[1672823501739,30.0,13.789,13.788,29.4941918]
[1672823506153,84.44,13.789,13.788,29.4941918]
[1672823506985,104.44,13.789,13.788,29.4941918]
[1672823507187,416.44,13.789,13.788,29.4941918]
[1672823508151,386.44,13.789,13.788,29.4941918]
[1672823509198,31.14157507,13.785,13.783,6.8163869]
[1672823509417,54.46,13.784,13.783,6.8163869]
[1672823512252,366.46,13.784,13.783,6.8163869]
[1672823514252,312.0,13.784,13.783,6.8163869]
[1672823518888,31.14157507,13.785,13.783,6.8163869]
[1672823521817,312.0,13.792,13.783,6.8163869]
[1672823522783,54.42,13.794,13.783,6.8163869]
[1672823525726,366.42,13.794,13.783,6.8163869]
[1672823526986,49.60744685,13.793,13.783,6.8163869]
[1672823527177,54.43,13.792,13.783,6.8163869]
[1672823527715,49.60744685,13.791,13.783,6.8163869]
[1672823527920,74.44,13.79,13.783,6.8163869]
[1672823528658,124.04744685,13.79,13.783,6.8163869]
[1672823531406,436.04744685,13.79,13.783,6.8163869]
[1672823536669,386.44,13.79,13.783,6.8163869]
[1672823537188,366.44,13.79,13.783,6.8163869]
[1672823537512,54.43,13.792,13.783,6.8163869]
[1672823537697,54.42,13.794,13.783,6.8163869]
[1672823542441,54.42,13.794,13.783,28.32882137]
[1672823543382,36.91979597,13.809,13.784,20.0]
[1672823543712,93.83959194,13.812,13.785,68.90313447]
[1672823543713,202.80559597,13.81,13.785,68.90313447]
[1672823544017,54.36,13.809,13.786,21.51243447]
[1672823544212,54.36,13.809,13.786,41.51243447]
[1672823544417,130.89127563,13.809,13.787,109.8921]
[1672823544641,36.91979597,13.807,13.788,20.0]
[1672823544843,54.37,13.806,13.789,24.7349]
[1672823545480,130.90127563,13.806,13.79,24.9049]
[1672823545914,36.91979597,13.805,13.79,24.9049]
[1672823546113,74.38,13.804,13.79,24.9049]
[1672823546445,227.89459544,13.804,13.79,24.9049]
[1672823546646,39.58618019,13.803,13.79,24.9049]
[1672823546843,74.39,13.802,13.79,24.9049]
[1672823547991,113.97618019,13.802,13.79,24.9049]
[1672823548233,150.92127563,13.802,13.79,24.9049]
[1672823548540,312.0,13.795,13.79,24.9049]
[1672823548747,54.42,13.794,13.785,22.5128]
[1672823548940,54.42,13.794,13.783,6.8163869]
[1672823551790,54.41,13.797,13.783,6.8163869]
[1672823553907,54.41,13.797,13.783,28.32882137]
[1672823554425,54.41,13.797,13.783,6.8163869]
[1672823556520,75.92243447,13.797,13.783,6.8163869]
[1672823558624,387.92243447,13.797,13.783,6.8163869]
[1672823560924,366.41,13.797,13.783,6.8163869]
[1672823562186,387.92243447,13.797,13.783,6.8163869]
[1672823563652,434.07794799,13.797,13.783,6.8163869]
[1672823564413,122.07794799,13.797,13.783,6.8163869]
[1672823565241,100.56551352,13.797,13.783,6.8163869]
[1672823565763,125.05481352,13.797,13.783,6.8163869]
[1672823565981,78.8993,13.797,13.783,28.32882137]
[1672823566297,78.8993,13.797,13.783,6.8163869]
[1672823567122,78.8993,13.797,13.783,28.32882137]
[1672823568178,78.8993,13.797,13.784,21.51243447]
[1672823569132,78.8993,13.797,13.784,22.61]
[1672823569757,122.4294936,13.797,13.784,22.61]
[1672823572601,83.10060896,13.796,13.784,22.61]
[1672823572816,54.42,13.795,13.784,22.61]
[1672823573004,103.9301936,13.795,13.784,22.61]
[1672823573220,49.5101936,13.794,13.784,22.61]
[1672823573447,54.42,13.793,13.784,22.61]
[1672823574065,54.42,13.795,13.784,22.61]
[1672823574900,54.41,13.796,13.784,22.61]
[1672823577857,78.8993,13.797,13.784,22.61]
[1672823578167,54.41,13.797,13.785,41.51243447]
[1672823578359,54.4,13.799,13.785,20.0]
[1672823578573,54.4,13.799,13.785,44.3791]
[1672823581617,54.38,13.803,13.785,44.3791]
[1672823582249,103.8901936,13.803,13.786,371.52865387]
[1672823582457,103.8901936,13.803,13.787,20.0]
[1672823582687,103.8901936,13.803,13.788,22.9333]
[1672823582883,103.8901936,13.803,13.789,366.97727712]
[1672823583094,103.8901936,13.803,13.79,339.14899943]
[1672823583309,54.38,13.803,13.79,339.14899943]
[1672823584277,312.0,13.799,13.79,339.14899943]
[1672823586673,54.38,13.803,13.79,339.14899943]
[1672823588480,46.15551352,13.802,13.79,339.14899943]
[1672823588673,54.39,13.801,13.79,339.14899943]
[1672823589000,54.39,13.801,13.789,20.0]
[1672823589527,366.39,13.801,13.789,20.0]
[1672823590141,415.9001936,13.801,13.789,20.0]
[1672823592886,103.9001936,13.801,13.789,20.0]
[1672823593084,49.5101936,13.801,13.789,20.0]
[1672823593626,54.38,13.803,13.789,20.0]
[1672823595300,54.38,13.803,13.789,41.51243447]
[1672823595497,24.1347,13.804,13.789,41.51243447]
[1672823595919,24.1347,13.804,13.789,20.0]
[1672823596148,54.38,13.803,13.789,20.0]
[1672823600251,78.5147,13.804,13.789,20.0]
[1672823600863,24.1347,13.804,13.789,20.0]
[1672823601192,54.37,13.806,13.789,20.0]
[1672823601411,172.4573,13.812,13.79,24.6359]
[1672823601604,172.4573,13.812,13.791,20.0]
[1672823602253,196.7314,13.812,13.792,23.7502]
[1672823602656,196.7314,13.812,13.793,20.0]
[1672823603070,242.88691352,13.812,13.793,20.0]
[1672823603502,292.39710712,13.812,13.793,20.0]
[1672823604344,292.39710712,13.812,13.793,24.291]
[1672823605414,292.39710712,13.812,13.793,20.0]
[1672823605801,292.39710712,13.812,13.793,33.31]
[1672823606047,246.2415936,13.812,13.793,33.31]
[1672823606977,196.7314,13.812,13.793,33.31]
[1672823607172,508.7314,13.812,13.793,33.31]
[1672823608861,508.7314,13.812,13.793,20.0]
[1672823611377,49.5101936,13.811,13.792,23.7502]
[1672823611591,97.9711,13.81,13.792,23.7502]
[1672823611815,144.12661352,13.81,13.792,23.7502]
[1672823612023,95.66570712,13.809,13.792,23.7502]
[1672823612241,74.37,13.808,13.792,23.7502]
[1672823612457,24.9806,13.807,13.792,23.7502]
[1672823612666,74.37,13.806,13.792,23.7502]
[1672823612855,194.1368,13.806,13.792,23.7502]
[1672823614976,54.37,13.806,13.792,23.7502]
[1672823615189,54.36,13.809,13.793,20.0]
[1672823617820,366.36,13.809,13.793,20.0]
[1672823619384,366.36,13.809,13.792,23.7502]
[1672823619578,41.51243447,13.808,13.792,23.7502]
[1672823619794,54.37,13.807,13.792,23.7502]
[1672823620004,134.0543,13.806,13.792,23.7502]
[1672823620210,54.38,13.805,13.792,23.7502]
[1672823620952,79.0252,13.805,13.792,23.7502]
[1672823622746,391.0252,13.805,13.792,23.7502]
[1672823624546,440.5353936,13.805,13.792,23.7502]
[1672823627707,128.5353936,13.805,13.792,23.7502]
[1672823627897,79.0252,13.805,13.792,23.7502]
[1672823628233,79.0252,13.805,13.793,20.0]
[1672823628636,54.38,13.805,13.793,20.0]
[1672823630021,54.38,13.805,13.792,23.7502]
[1672823630342,168.13947546,13.805,13.792,23.7502]
[1672823630521,49.5101936,13.804,13.792,23.7502]
[1672823630728,54.38,13.803,13.792,23.7502]
[1672823631169,103.8901936,13.803,13.792,23.7502]
[1672823633675,54.38,13.803,13.792,23.7502]
[1672823633890,49.87351335,13.803,13.792,23.7502]
[1672823634219,54.39,13.802,13.792,23.7502]
[1672823634630,366.39,13.802,13.792,23.7502]
[1672823636618,49.5101936,13.801,13.792,23.7502]
[1672823636949,54.4,13.8,13.792,23.7502]
[1672823638215,103.9101936,13.8,13.792,23.7502]
[1672823639684,415.9101936,13.8,13.792,23.7502]
[1672823643588,54.4,13.8,13.792,23.7502]
[1672823643802,24.0675,13.802,13.793,30.0]
[1672823644018,54.39,13.801,13.793,30.0]
[1672823644746,24.0675,13.802,13.793,30.0]
[1672823645269,24.0675,13.802,13.794,20.0]
[1672823645685,54.36,13.81,13.795,30.0]
[1672823645903,22.931,13.809,13.795,30.0]
[1672823646211,22.931,13.809,13.796,20.0]
[1672823646403,334.931,13.809,13.797,30.0]
[1672823646619,334.931,13.809,13.798,20.0]
[1672823646830,54.37,13.808,13.796,69.7045]
[1672823647682,84.37,13.808,13.796,69.7045]
[1672823648509,54.37,13.808,13.796,69.7045]
[1672823649258,41.51243447,13.807,13.796,49.7045]
[1672823649473,84.37,13.806,13.796,49.7045]
[1672823649685,84.37,13.806,13.79,23.1054]
[1672823649887,22.8673,13.805,13.791,46.1284]
[1672823650107,30.0,13.803,13.791,46.1284]
[1672823650417,54.39,13.802,13.791,46.1284]
[1672823653902,54.38,13.803,13.791,46.1284]
[1672823654858,30.0,13.802,13.791,46.1284]
[1672823655036,54.39,13.801,13.791,46.1284]
[1672823657041,54.39,13.801,13.792,30.0]
[1672823658092,54.39,13.801,13.791,46.1284]
[1672823659462,54.39,13.801,13.792,30.0]
[1672823659890,54.39,13.801,13.791,46.1284]
[1672823663452,78.6075,13.802,13.791,46.1284]
[1672823663764,24.2175,13.802,13.791,46.1284]
[1672823664010,24.2175,13.802,13.792,30.0]
[1672823665454,24.2175,13.802,13.791,46.1284]
[1672823666213,30.0,13.801,13.791,46.1284]
[1672823666410,84.39,13.801,13.791,46.1284]
[1672823666837,30.0,13.801,13.791,46.1284]
[1672823667251,78.6075,13.802,13.791,46.1284]
[1672823667980,24.2175,13.802,13.791,46.1284]
[1672823668318,30.0,13.801,13.791,46.1284]
[1672823669265,84.39,13.801,13.791,46.1284]
[1672823672297,30.0,13.801,13.791,46.1284]
[1672823674719,78.6075,13.802,13.791,46.1284]
[1672823674919,30.0,13.801,13.791,46.1284]
[1672823681230,24.2175,13.802,13.791,46.1284]
[1672823682286,24.2175,13.802,13.792,30.0]
[1672823682500,114.9533,13.804,13.793,20.0]
[1672823683007,47.9544,13.811,13.793,20.0]
[1672823683221,30.0,13.81,13.794,24.338]
[1672823683444,30.0,13.81,13.795,20.0]
[1672823683983,167.2526,13.811,13.795,20.0]
[1672823684520,167.2526,13.811,13.796,24.2252]
[1672823684698,167.2526,13.811,13.797,20.0]
[1672823684914,167.2526,13.811,13.797,44.338]
[1672823685336,30.0,13.81,13.797,44.338]
[1672823685746,167.2526,13.811,13.798,30.0]
[1672823686060,167.2526,13.811,13.799,20.0]
[1672823687547,30.0,13.81,13.799,20.0]
[1672823688720,30.0,13.81,13.798,20.0]
[1672823688894,221.6026,13.811,13.798,20.0]
[1672823689236,167.2526,13.811,13.799,30.0]
[1672823689756,167.2526,13.811,13.799,29.91215306]
[1672823695223,54.32,13.82,13.801,30.0]
[1672823695435,197.8072,13.82,13.803,30.0]
[1672823695663,197.8072,13.82,13.804,20.0]
[1672823695975,197.8072,13.82,13.806,30.0]
[1672823696195,197.8072,13.82,13.807,20.0]
[1672823696397,30.0,13.819,13.807,20.0]
[1672823696609,54.33,13.818,13.807,20.0]
[1672823696799,54.33,13.818,13.806,20.0]
[1672823697128,30.0,13.817,13.806,20.0]
[1672823697454,54.33,13.818,13.806,20.0]
[1672823698167,30.0,13.817,13.806,20.0]
[1672823699757,54.33,13.818,13.806,20.0]
[1672823699972,54.32,13.819,13.807,30.0]
[1672823700167,54.32,13.819,13.808,20.0]
[1672823700797,54.32,13.819,13.808,42.633]
[1672823701864,54.32,13.819,13.809,30.0]
[1672823702802,54.32,13.819,13.808,42.633]
[1672823703834,197.8072,13.82,13.808,42.633]
[1672823704688,143.4872,13.82,13.808,56.343]
[1672823704882,143.4872,13.82,13.808,42.633]
[1672823705097,84.32,13.819,13.808,42.633]
[1672823706363,54.32,13.819,13.808,42.633]
[1672823708463,54.32,13.819,13.809,30.0]
[1672823708673,197.8072,13.82,13.808,144.53925762]
[1672823708886,197.8072,13.82,13.808,91.32553527]
[1672823709430,30.0,13.819,13.808,91.32553527]
[1672823710377,197.8072,13.82,13.808,91.32553527]
[1672823710687,30.0,13.819,13.808,91.32553527]
[1672823712159,30.0,13.819,13.808,42.633]
[1672823713724,197.8072,13.82,13.808,42.633]
[1672823713936,143.4872,13.82,13.808,47.468]
[1672823714368,143.4872,13.82,13.808,42.633]
[1672823714369,197.8072,13.82,13.808,42.633]
[1672823714690,30.0,13.819,13.808,49.696]
[1672823714998,143.4872,13.82,13.808,42.633]
[1672823715216,30.0,13.819,13.808,42.633]
[1672823715740,197.8072,13.82,13.808,42.633]
[1672823716663,197.8072,13.82,13.809,30.0]